bitfinex/quotes_BTCUSD_20251224
["timestamp","ask_amount","ask_price","bid_price","bid_amount"]
[1766550462701,0.01144924,87342.0,87335.0,0.31609]
[1766550464845,0.01144937,87341.0,87335.0,0.31609]
[1766550465762,0.01144924,87342.0,87335.0,0.31609]
[1766550466795,0.01148,87344.0,87336.0,0.01145003]
[1766550466969,0.01148,87344.0,87338.0,0.01144976]
[1766550467201,0.01148,87344.0,87339.0,0.01144963]
[1766550467351,0.01148,87344.0,87337.0,0.31609]
[1766550467562,0.01144819,87350.0,87344.0,0.000549]
[1766550467773,0.02292819,87350.0,87340.0,0.0114495]
[1766550467986,0.01144832,87349.0,87340.0,0.0114495]
[1766550468156,0.06868995,87349.0,87337.0,0.31609]
[1766550468554,0.01144898,87344.0,87337.0,0.31609]
[1766550469147,0.01144911,87343.0,87337.0,0.31609]
[1766550469352,0.01144898,87344.0,87337.0,0.31609]
[1766550471316,0.06869236,87346.0,87333.0,0.01148]
[1766550471317,0.01144872,87346.0,87333.0,0.01148]
[1766550471511,0.01144872,87346.0,87338.0,0.03436408]
[1766550471721,0.01144859,87347.0,87338.0,0.01144976]
[1766550472259,0.01144675,87361.0,87350.0,0.01144819]
[1766550472489,0.03437691,87360.0,87350.0,0.81484852]
[1766550472662,0.01148,87360.0,87350.0,0.32753819]
[1766550473034,0.30756,87360.0,87351.0,0.01144806]
[1766550473354,0.30756,87360.0,87351.0,0.06868821]
[1766550473619,0.29656176,87360.0,87352.0,0.01144793]
[1766550473822,0.29656176,87360.0,87351.0,0.01144806]
[1766550474375,0.0114457,87369.0,87360.0,0.01144688]
[1766550474580,0.01148,87367.0,87360.0,0.01144688]
[1766550474960,0.01148,87367.0,87362.0,0.01144662]
[1766550475157,0.01148,87367.0,87364.0,0.01144636]
[1766550475734,0.01148,87371.0,87366.0,0.06867607]
[1766550475938,0.29608,87376.0,87366.0,0.06867607]
[1766550475939,0.29608,87376.0,87370.0,0.01144557]
[1766550476256,0.29608,87376.0,87367.0,0.0686752]
[1766550476257,0.29608,87376.0,87368.0,0.01144583]
[1766550476416,0.29608,87376.0,87366.0,0.0114461]
[1766550476635,0.30752479,87376.0,87367.0,0.01144596]
[1766550476862,0.01144361,87385.0,87374.0,0.01144505]
[1766550477062,0.05721684,87387.0,87377.0,0.01144465]
[1766550477063,0.01144334,87387.0,87377.0,0.01144465]
[1766550477467,0.01144348,87386.0,87377.0,0.01144465]
[1766550477902,0.01144348,87386.0,87376.0,0.04579466]
[1766550478113,0.01144334,87387.0,87377.0,0.01144465]
[1766550478324,0.36473959,87388.0,87378.0,0.01144452]
[1766550478325,0.30752321,87388.0,87378.0,0.01144452]
[1766550478529,0.01144334,87387.0,87378.0,0.01144452]
[1766550479107,0.01144334,87387.0,87377.0,0.01144465]
[1766550479514,0.01144348,87386.0,87377.0,0.01144465]
[1766550480574,0.01144334,87387.0,87377.0,0.01144465]
[1766550480767,0.01144334,87387.0,87378.0,0.01144452]
[1766550480927,0.29608,87388.0,87379.0,0.01144439]
[1766550481126,0.06866177,87385.0,87378.0,0.30483]
[1766550481469,0.000549,87378.0,87375.0,0.04579479]
[1766550481914,0.32281374,87384.0,87375.0,0.04579479]
[1766550482087,0.01144387,87383.0,87374.0,0.01148]
[1766550482321,0.29143,87382.0,87375.0,0.01144374]
[1766550482514,0.29143,87382.0,87375.0,0.01144492]
[1766550483060,0.29143,87382.0,87374.0,0.03436735]
[1766550483263,0.29143,87382.0,87374.0,0.02292348]
[1766550483474,0.25643,87382.0,87375.0,0.01144492]
[1766550485481,0.25636111,87382.0,87375.0,0.01144492]
[1766550485802,0.25636111,87382.0,87374.0,0.01147843]
[1766550486187,0.25636111,87382.0,87374.0,0.02292348]
[1766550486574,0.25636111,87382.0,87369.0,0.0114457]
[1766550486575,0.001099,87374.0,87369.0,0.0114457]
[1766550486774,0.001099,87374.0,87370.0,0.00612233]
[1766550486975,0.19907,87376.0,87370.0,2.33e-06]
[1766550487175,0.21051479,87376.0,87370.0,2.33e-06]
[1766550487586,0.01144492,87375.0,87370.0,2.33e-06]
[1766550488071,0.19907,87376.0,87370.0,2.33e-06]
[1766550489248,0.21051479,87376.0,87370.0,2.33e-06]
[1766550489448,0.01144492,87375.0,87370.0,2.33e-06]
[1766550489669,0.21051479,87376.0,87370.0,2.33e-06]
[1766550490503,0.21051479,87376.0,87255.0,0.10076]
[1766550490504,0.01144544,87371.0,87360.0,0.02289298]
[1766550490662,0.001099,87360.0,87357.0,0.01145037]
[1766550491202,0.14914,87361.0,87357.0,0.01145037]
[1766550491428,0.14914,87361.0,87357.0,0.01128]
[1766550491634,0.14914,87361.0,87358.0,0.01144714]
[1766550492892,0.14914,87361.0,87356.0,0.01144741]
[1766550493100,0.000549,87356.0,87355.0,0.01144754]
[1766550493264,0.14914,87361.0,87350.0,0.0001]
[1766550493460,0.01144688,87360.0,87351.0,0.01144806]
[1766550493711,0.5102054,87360.0,87349.0,0.01148]
[1766550494023,0.01144714,87358.0,87347.0,0.01148]
[1766550494198,0.000549,87349.0,87345.0,0.01148]
[1766550494377,0.01144727,87357.0,87345.0,0.01148]
[1766550494590,0.01144741,87356.0,87346.0,0.01144872]
[1766550494786,0.01144754,87355.0,87346.0,0.01144872]
[1766550494988,0.01144754,87355.0,87345.0,0.02292885]
[1766550495188,0.01148,87354.0,87346.0,0.01144872]
[1766550495390,0.01148,87354.0,87347.0,0.01144859]
[1766550495841,0.000549,87347.0,87336.0,0.31628003]
[1766550496045,0.02292845,87348.0,87334.0,0.05725082]
[1766550496249,0.01144872,87346.0,87336.0,0.01145003]
[1766550496637,0.03436715,87347.0,87337.0,0.0114499]
[1766550496805,0.04581574,87347.0,87337.0,0.0114499]
[1766550497231,0.01144872,87346.0,87336.0,0.01145003]
[1766550497662,0.01144885,87345.0,87336.0,0.01145003]
[1766550497823,0.01144885,87345.0,87331.0,0.05725283]
[1766550497824,0.000549,87336.0,87333.0,0.01145042]
[1766550498041,0.01144885,87345.0,87333.0,0.01145042]
[1766550498245,0.49875852,87343.0,87335.0,0.01145016]
[1766550498609,0.49875852,87343.0,87335.0,1.6e-07]
[1766550498722,0.49875852,87343.0,87335.0,0.01145032]
[1766550499129,0.01148,87342.0,87332.0,0.01145055]
[1766550499326,0.01144937,87341.0,87332.0,0.01145055]
[1766550499991,0.02292924,87342.0,87332.0,0.01145055]
[1766550500190,0.02292924,87342.0,87333.0,0.01145042]
[1766550500388,0.000549,87333.0,87328.0,0.01148]
[1766550500633,0.000549,87333.0,87325.0,0.05725718]
[1766550500772,0.11898769,87336.0,87325.0,0.05725718]
[1766550500965,0.11898769,87336.0,87326.0,0.01145134]
[1766550501576,0.61774621,87336.0,87327.0,0.01145121]
[1766550501973,0.11898769,87336.0,87328.0,0.01145108]
[1766550502978,0.11898769,87336.0,87327.0,0.01145121]
[1766550503220,0.11898769,87336.0,87328.0,0.01145108]
[1766550503427,0.13043772,87336.0,87327.0,0.01145121]
[1766550504094,0.11898769,87336.0,87327.0,0.01145121]
[1766550506021,0.18768848,87336.0,87326.0,0.01145134]
[1766550506227,0.000549,87327.0,87324.0,0.0229316]
[1766550506477,0.01145042,87333.0,87324.0,0.01148]
[1766550506686,0.00055,87324.0,87315.0,0.01145278]
[1766550506862,0.00055,87324.0,87320.0,0.01145213]
[1766550507081,0.01148,87326.0,87319.0,0.01145226]
[1766550507278,0.01148,87326.0,87318.0,0.01145239]
[1766550507607,0.01148,87326.0,87319.0,0.01145226]
[1766550507810,0.01148,87326.0,87320.0,0.01145213]
[1766550508028,0.01148,87326.0,87322.0,0.01145186]
[1766550508572,0.01148,87326.0,87321.0,0.01145199]
[1766550509521,0.01148,87326.0,87320.0,0.01145213]
[1766550509693,0.01148,87326.0,87319.0,0.01145226]
[1766550509939,0.01148,87326.0,87318.0,0.06871375]
[1766550510157,0.01148,87326.0,87319.0,0.01145226]
[1766550510379,0.01148,87326.0,87320.0,0.01145213]
[1766550511099,0.01148,87326.0,87321.0,0.01145199]
[1766550511344,0.01148,87326.0,87322.0,0.01145186]
[1766550512205,0.01148,87326.0,87319.0,0.29153]
[1766550512427,0.01148,87326.0,87319.0,0.30298226]
[1766550512622,0.01148,87326.0,87319.0,0.29153]
[1766550512825,0.01148,87326.0,87319.0,0.30298226]
[1766550513321,0.01148,87326.0,87319.0,0.29153]
[1766550513539,0.01148,87326.0,87319.0,0.30298226]
[1766550513720,0.01148,87326.0,87319.0,0.01145226]
[1766550516580,0.01148,87326.0,87321.0,0.01145199]
[1766550517143,0.01148,87326.0,87320.0,0.01145213]
[1766550517348,0.01148,87326.0,87319.0,0.01145226]
[1766550517655,0.01148,87326.0,87320.0,0.01145213]
[1766550518896,0.01148,87326.0,87319.0,0.01145226]
[1766550520400,0.01148,87326.0,87320.0,0.01145213]
[1766550521028,0.01148,87326.0,87319.0,0.01145226]
[1766550523104,0.01148,87326.0,87320.0,0.01145213]
[1766550523394,0.01148,87326.0,87319.0,0.01145226]
[1766550523973,0.01148,87326.0,87320.0,0.01145213]
[1766550524638,0.01148,87326.0,87319.0,0.01145226]
[1766550524867,0.01148,87326.0,87321.0,0.01145199]
[1766550527545,0.01148,87326.0,87319.0,0.01145226]
[1766550527714,0.01148,87326.0,87319.0,0.30320226]
[1766550527926,0.01148,87326.0,87320.0,0.01145213]
[1766550528133,0.01148,87326.0,87321.0,0.01145199]
[1766550528357,0.01148,87326.0,87321.0,0.30320199]
[1766550528784,0.01148,87326.0,87321.0,0.29175]
[1766550534037,0.01148,87326.0,87321.0,0.30320199]
[1766550534239,0.01148,87326.0,87321.0,0.29175]
[1766550536148,0.01126693,87326.0,87321.0,0.29175]
[1766550536564,0.01126693,87326.0,87321.0,0.30320199]
[1766550536768,0.01126693,87326.0,87321.0,0.29175]
[1766550537141,0.01126693,87326.0,87322.0,0.01145186]
[1766550537388,0.01126693,87326.0,87321.0,0.29175]
[1766550537562,0.01148,87327.0,87321.0,0.29175]
[1766550537736,0.02293121,87327.0,87321.0,0.29175]
[1766550538726,0.01148,87327.0,87321.0,0.29175]
[1766550539970,0.01148,87328.0,87321.0,0.30320199]
[1766550540171,0.01148,87328.0,87321.0,0.29175]
[1766550540371,0.01148,87328.0,87321.0,0.30320199]
[1766550540550,0.01148,87328.0,87321.0,0.29175]
[1766550541566,0.01148,87328.0,87321.0,0.30320199]
[1766550541788,0.01148,87328.0,87321.0,0.29175]
[1766550541990,0.01148,87328.0,87321.0,0.30320199]
[1766550542577,0.01148,87328.0,87321.0,0.01145199]
[1766550542778,0.01148,87333.0,87328.0,0.3073]
[1766550542982,0.01148,87335.0,87328.0,0.3073]
[1766550543183,0.01148,87341.0,87333.0,0.01145042]
[1766550543378,0.01148,87341.0,87329.0,0.31875094]
[1766550543379,0.01144937,87341.0,87335.0,0.3073]
[1766550543710,0.06869625,87341.0,87335.0,0.306201]
[1766550543863,0.01144963,87339.0,87335.0,0.306201]
[1766550544403,0.2276,87328.0,87322.0,0.01148]
[1766550544548,0.11898769,87326.0,87318.0,0.02293239]
[1766550545264,0.01148,87331.0,87323.0,0.01145173]
[1766550545498,0.01148,87331.0,87315.0,6.941e-05]
[1766550545499,0.148,87324.0,87316.0,2.76e-06]
[1766550545702,0.01148,87327.0,87325.0,0.3073]
[1766550545910,0.01148,87331.0,87325.0,0.3073]
[1766550546576,0.02293068,87331.0,87325.0,0.3073]
[1766550546762,0.01145081,87330.0,87325.0,0.307194]
[1766550547416,0.01145094,87329.0,87320.0,0.01145213]
[1766550547544,0.01145094,87329.0,87319.0,0.31875226]
[1766550547974,0.01145186,87322.0,87319.0,0.3073]
[1766550548374,0.01145199,87321.0,87317.0,0.01148]
[1766550548599,0.01145213,87320.0,87317.0,0.01148]
[1766550548782,0.01145199,87321.0,87317.0,0.01148]
[1766550548987,0.09482,87322.0,87317.0,0.01148]
[1766550549361,0.01145199,87321.0,87317.0,0.01148]
[1766550549543,0.01145173,87323.0,87317.0,0.01148]
[1766550551223,0.01145186,87322.0,87317.0,0.01148]
[1766550551632,0.15374672,87328.0,87317.0,0.01148]
[1766550551808,0.01145147,87325.0,87322.0,0.000549]
[1766550552032,0.0114516,87324.0,87317.0,0.01148]
[1766550552616,0.01145173,87323.0,87317.0,0.01148]
[1766550553023,0.0114516,87324.0,87317.0,0.01148]
[1766550553717,0.01145173,87323.0,87317.0,0.01148]
[1766550553939,0.01145147,87325.0,87317.0,0.01148]
[1766550554141,0.01145081,87330.0,87320.0,0.01145213]
[1766550554321,0.01145081,87330.0,87319.0,0.01145226]
[1766550554322,0.01145094,87329.0,87321.0,0.3073]
[1766550554546,0.01148,87331.0,87323.0,0.31875173]
[1766550554751,0.01148,87331.0,87323.0,0.3073]
[1766550554961,0.02293068,87331.0,87323.0,0.3073]
[1766550555531,0.01148,87331.0,87323.0,0.3073]
[1766550555728,0.02293068,87331.0,87323.0,0.3073]
[1766550555935,0.01148,87331.0,87323.0,0.28063729]
[1766550556141,0.02293068,87331.0,87323.0,0.28063729]
[1766550557330,0.01148,87331.0,87323.0,0.28063729]
[1766550557526,0.01145081,87330.0,87323.0,0.28063729]
[1766550557745,0.06873345,87331.0,87323.0,0.28063729]
[1766550557945,0.01145081,87330.0,87323.0,0.28063729]
[1766550558174,0.01148,87331.0,87323.0,0.28063729]
[1766550558577,0.02293068,87331.0,87323.0,0.28063729]
[1766550559145,0.01148,87331.0,87323.0,0.28063729]
[1766550559590,0.02293068,87331.0,87323.0,0.28063729]
[1766550559767,0.01145081,87330.0,87323.0,0.28063729]
[1766550560488,0.02293068,87331.0,87323.0,0.28063729]
[1766550561252,0.02293068,87331.0,87322.0,0.01145186]
[1766550561461,0.14062068,87331.0,87321.0,0.01145199]
[1766550561663,0.14062068,87331.0,87320.0,0.01145213]
[1766550561898,0.01145081,87330.0,87320.0,0.01145213]
[1766550562198,0.14131068,87331.0,87321.0,0.01145199]
[1766550562983,0.01145081,87330.0,87321.0,0.01145199]
[1766550563189,0.04582631,87330.0,87321.0,0.01145199]
[1766550563533,0.0343755,87330.0,87322.0,0.01145186]
[1766550563823,0.04582631,87330.0,87320.0,0.01145213]
[1766550564044,0.04582631,87330.0,87321.0,0.01145199]
[1766550564622,0.0343755,87330.0,87321.0,0.01145199]
[1766550565994,0.04582631,87330.0,87320.0,0.01145213]
[1766550566200,0.04582631,87330.0,87321.0,0.01145199]
[1766550566802,0.0343755,87330.0,87321.0,0.01145199]
[1766550567426,0.04582631,87330.0,87321.0,0.01145199]
[1766550568421,0.0343755,87330.0,87320.0,0.01145213]
[1766550568620,0.04582631,87330.0,87321.0,0.01145199]
[1766550570360,0.04582631,87330.0,87320.0,0.01145213]
[1766550570740,0.04582631,87330.0,87321.0,0.01145199]
[1766550570943,0.0343755,87330.0,87320.0,0.01145213]
[1766550571166,0.0343755,87330.0,87321.0,0.01145199]
[1766550571941,0.04582631,87330.0,87321.0,0.01145199]
[1766550572288,0.0343755,87330.0,87321.0,0.01145199]
[1766550572517,0.0343755,87330.0,87322.0,0.01145186]
[1766550572778,0.01148,87335.0,87330.0,0.000549]
[1766550573354,0.01148,87335.0,87329.0,0.31912]
[1766550573915,0.02293016,87335.0,87329.0,0.31912]
[1766550574100,0.01148,87335.0,87329.0,0.31912]
[1766550574752,0.05724408,87346.0,87335.0,0.000549]
[1766550574955,0.01148,87342.0,87335.0,0.000549]
[1766550575167,0.01148,87342.0,87335.0,0.34544916]
[1766550575347,0.01148,87342.0,87335.0,0.34490016]
[1766550576046,0.01148,87342.0,87335.0,0.33345]
[1766550577084,0.01148,87342.0,87335.0,0.34490016]
[1766550577227,0.01148,87342.0,87335.0,0.33345]
[1766550577646,0.01148,87342.0,87336.0,0.33345]
[1766550577875,0.010931,87342.0,87339.0,0.01144963]
[1766550578369,0.010931,87342.0,87338.0,0.01144976]
[1766550578568,0.010931,87342.0,87337.0,0.0114499]
[1766550580715,0.010931,87342.0,87338.0,0.01144976]
[1766550581366,0.010931,87342.0,87337.0,0.0114499]
[1766550581816,0.010931,87342.0,87338.0,0.01144976]
[1766550582030,0.010931,87342.0,87337.0,0.0114499]
[1766550582523,0.010931,87342.0,87338.0,0.01144976]
[1766550582736,0.010931,87342.0,87337.0,0.0114499]
[1766550583114,0.010931,87342.0,87338.0,0.01144976]
[1766550583320,0.010931,87342.0,87337.0,0.0114499]
[1766550585409,0.010931,87342.0,87336.0,0.34490003]
[1766550585410,0.010931,87342.0,87336.0,0.33345]
[1766550585610,0.000549,87337.0,87336.0,0.33345]
[1766550585811,0.000549,87337.0,87336.0,0.31783272]
[1766550586207,0.01144963,87339.0,87328.0,0.34490108]
[1766550586418,0.20159963,87339.0,87329.0,0.01148]
[1766550586647,0.20209976,87338.0,87329.0,0.01148]
[1766550586852,0.20209976,87338.0,87328.0,0.34490108]
[1766550587048,0.20209976,87338.0,87328.0,0.35638108]
[1766550587399,0.19065,87338.0,87330.0,0.01145081]
[1766550588153,0.24789886,87338.0,87328.0,0.34493]
[1766550588399,0.0114499,87337.0,87328.0,0.35638108]
[1766550588799,0.20209976,87338.0,87329.0,0.01145094]
[1766550589358,0.0114499,87337.0,87328.0,0.34490108]
[1766550589564,0.2035499,87337.0,87328.0,0.01145108]
[1766550589760,0.2035499,87337.0,87326.0,0.05725627]
[1766550589967,0.2035499,87337.0,87325.0,0.08028858]
[1766550590169,0.1921,87337.0,87325.0,0.08028858]
[1766550590396,0.1921,87337.0,87329.0,0.01145094]
[1766550591610,0.1921,87337.0,87330.0,0.01145081]
[1766550592501,0.1921,87337.0,87331.0,0.01145068]
[1766550592909,0.1921,87337.0,87330.0,0.01145081]
[1766550594980,0.1921,87337.0,87328.0,0.01145108]
[1766550595320,0.1921,87337.0,87329.0,0.01145094]
[1766550595492,0.1921,87337.0,87328.0,0.01145108]
[1766550595659,0.01145003,87336.0,87327.0,0.06870675]
[1766550595854,0.01145003,87336.0,87327.0,0.01145121]
[1766550596793,0.01145003,87336.0,87326.0,0.01145134]
[1766550597302,0.12774016,87335.0,87326.0,0.01145134]
[1766550597597,0.11629,87335.0,87325.0,0.02303147]
[1766550597900,0.11629,87335.0,87326.0,0.01145134]
[1766550598112,0.11629,87335.0,87327.0,0.01145121]
[1766550598854,0.11629,87335.0,87328.0,0.01145108]
[1766550599054,0.01144976,87338.0,87329.0,0.01145094]
[1766550599391,0.01144963,87339.0,87330.0,0.01145081]
[1766550599594,0.01144976,87338.0,87329.0,0.01145094]
[1766550599792,0.0114499,87337.0,87328.0,0.01145108]
[1766550600403,0.01144976,87338.0,87329.0,0.01145094]
[1766550601612,0.00799247,87338.0,87329.0,0.01145094]
[1766550602053,0.01144963,87339.0,87329.0,0.01145094]
[1766550602560,0.01145003,87336.0,87327.0,0.01145121]
[1766550602960,0.01145003,87336.0,87328.0,0.01148]
[1766550603136,0.0114499,87337.0,87328.0,0.01148]
[1766550603733,0.01145016,87335.0,87328.0,0.01148]
[1766550603938,0.01145003,87336.0,87328.0,0.01148]
[1766550604483,0.01145029,87334.0,87328.0,0.01148]
[1766550604684,0.01145003,87336.0,87328.0,0.01148]
[1766550605108,0.01145016,87335.0,87328.0,0.01148]
[1766550605433,0.01145003,87336.0,87328.0,0.01148]
[1766550605640,0.01145016,87335.0,87328.0,0.01148]
[1766550605841,0.01145042,87333.0,87328.0,0.01148]
[1766550607215,0.01145029,87334.0,87328.0,0.01148]
[1766550608155,0.01145003,87336.0,87328.0,0.01148]
[1766550608686,0.01145016,87335.0,87328.0,0.01148]
[1766550609142,0.01145003,87336.0,87328.0,0.01148]
[1766550609751,0.01145016,87335.0,87328.0,0.01148]
[1766550609961,0.01145003,87336.0,87328.0,0.01148]
[1766550610550,0.01145003,87336.0,87327.0,0.01145121]
[1766550610773,0.01145003,87336.0,87329.0,0.01148]
[1766550612786,0.01145029,87334.0,87329.0,0.01148]
[1766550612988,0.01145055,87332.0,87329.0,0.01148]
[1766550613289,0.12383068,87331.0,87321.0,0.01145199]
[1766550613443,0.12383068,87331.0,87322.0,0.01148]
[1766550613853,0.11238,87331.0,87323.0,0.01145173]
[1766550614918,0.11238,87331.0,87324.0,0.0114516]
[1766550615142,0.01145029,87334.0,87324.0,0.3251816]
[1766550615350,0.01145003,87336.0,87325.0,0.06870839]
[1766550615757,0.01145003,87336.0,87326.0,0.01148]
[1766550615950,0.01145029,87334.0,87326.0,0.01148]
[1766550618187,0.01145055,87332.0,87326.0,0.01148]
[1766550618391,0.01145068,87331.0,87326.0,0.01148]
[1766550619056,0.01145055,87332.0,87326.0,0.01148]
[1766550619390,0.01145042,87333.0,87326.0,0.01148]
[1766550619795,0.01145029,87334.0,87326.0,0.01148]
[1766550620193,0.01145003,87336.0,87327.0,0.01145121]
[1766550620846,0.01145016,87335.0,87326.0,0.02293134]
[1766550623067,0.01145003,87336.0,87327.0,0.01145121]
[1766550623907,0.01145003,87336.0,87326.0,0.01148]
[1766550623908,0.05725146,87335.0,87326.0,0.01148]
[1766550624240,0.10528,87334.0,87326.0,0.01148]
[1766550624370,0.01145068,87331.0,87326.0,0.01148]
[1766550624574,0.01145081,87330.0,87326.0,0.01148]
[1766550624772,0.01145068,87331.0,87326.0,0.01148]
[1766550625208,0.01145094,87329.0,87326.0,0.010931]
[1766550625551,0.09468,87324.0,87316.0,2.76e-06]
[1766550625756,0.01145213,87320.0,87319.0,0.01148]
[1766550626255,0.01145226,87319.0,87317.0,0.01148]
[1766550626370,0.01145226,87319.0,87316.0,2.76e-06]
[1766550626587,0.08303317,87312.0,87309.0,3.95e-06]
[1766550626786,0.08303317,87312.0,87309.0,1.49e-06]
[1766550627033,0.14029961,87312.0,87309.0,1.49e-06]
[1766550627284,0.08303317,87312.0,87309.0,1.49e-06]
[1766550627529,0.07158,87312.0,87309.0,1.49e-06]
[1766550627733,0.08303317,87312.0,87309.0,1.49e-06]
[1766550637434,0.071031,87312.0,87309.0,1.49e-06]
[1766550637571,0.01145304,87313.0,87309.0,1.49e-06]
[1766550639217,0.01145317,87312.0,87309.0,1.49e-06]
[1766550641771,0.06871908,87312.0,87309.0,1.49e-06]
[1766550642151,0.0572672,87310.0,87309.0,1.49e-06]
[1766550642499,0.1324772,87310.0,87309.0,1.49e-06]
[1766550642942,4.8e-07,87305.0,87304.0,1e-08]
[1766550643170,0.01145475,87300.0,87286.0,0.0002]
[1766550643373,0.05727707,87295.0,87286.0,0.0002]
[1766550643575,0.01145554,87294.0,87286.0,0.0002]
[1766550643802,0.01145527,87296.0,87287.0,0.01145645]
[1766550643972,0.0114554,87295.0,87286.0,0.34522659]
[1766550644335,0.01145567,87293.0,87283.0,0.33357]
[1766550644511,0.01145567,87293.0,87284.0,0.34502685]
[1766550644834,0.0114558,87292.0,87284.0,0.33357]
[1766550645011,0.000549,87284.0,87280.0,0.01148]
[1766550645212,0.000549,87284.0,87281.0,0.33357]
[1766550645563,0.34384,87291.0,87281.0,0.33357]
[1766550645564,0.01145606,87290.0,87281.0,0.33357]
[1766550646301,0.01145645,87287.0,87279.0,0.01148]
[1766550646496,0.01145659,87286.0,87279.0,0.01148]
[1766550646719,0.01145645,87287.0,87279.0,0.01148]
[1766550647148,0.01145659,87286.0,87279.0,0.01148]
[1766550647351,0.01145672,87285.0,87279.0,0.01148]
[1766550647558,0.01145659,87286.0,87279.0,0.01148]
[1766550647954,0.35529659,87286.0,87279.0,0.01148]
[1766550648272,0.35529659,87286.0,87276.0,0.0114579]
[1766550648497,0.01145672,87285.0,87276.0,0.01148]
[1766550648828,0.01145698,87283.0,87276.0,0.01148]
[1766550650062,0.01145685,87284.0,87276.0,0.01148]
[1766550650578,0.01145685,87284.0,87283.0,0.00065936]
[1766550650824,0.01145685,87284.0,87283.0,0.00011036]
[1766550651793,0.35529685,87284.0,87283.0,0.00011036]
[1766550652197,0.35529685,87284.0,87283.0,3.6e-07]
[1766550652501,0.05728937,87277.0,87267.0,0.33357]
[1766550652704,0.01145829,87273.0,87267.0,0.34505]
[1766550652901,0.01145816,87274.0,87267.0,0.34505]
[1766550653416,0.01145803,87275.0,87268.0,0.01148]
[1766550653578,0.0114579,87276.0,87268.0,0.01148]
[1766550653781,0.0003573,87275.0,87268.0,0.01148]
[1766550654130,0.0003573,87275.0,87264.0,0.01148]
[1766550654131,0.01145829,87273.0,87264.0,0.01148]
[1766550654246,0.01145829,87273.0,87264.0,0.02293947]
[1766550654460,0.35529816,87274.0,87264.0,0.02293947]
[1766550655460,0.01145921,87266.0,87263.0,0.0002]
[1766550655603,0.01145908,87267.0,87266.0,0.000549]
[1766550656007,0.0687545,87267.0,87266.0,0.000549]
[1766550656318,0.01145908,87267.0,87263.0,0.0002]
[1766550657123,0.01145895,87268.0,87263.0,0.0002]
[1766550657577,0.01145908,87267.0,87263.0,0.0002]
[1766550657719,0.01145921,87266.0,87263.0,0.0002]
[1766550657929,0.01145921,87266.0,87258.0,0.0001]
[1766550657930,0.01145947,87264.0,87258.0,0.0001]
[1766550658128,0.01148,87268.0,87261.0,0.01145987]
[1766550658349,0.01148,87268.0,87263.0,0.00062844]
[1766550658690,0.01148,87268.0,87261.0,0.01145987]
[1766550658876,0.01148,87268.0,87263.0,0.3417]
[1766550659063,0.000349,87263.0,87256.0,0.3417]
[1766550659686,0.01145921,87266.0,87256.0,0.35316052]
[1766550659888,0.01145895,87268.0,87259.0,0.3417]
[1766550660090,0.01145908,87267.0,87259.0,0.3417]
[1766550660498,0.01145895,87268.0,87259.0,0.3417]
[1766550660695,0.01145895,87268.0,87258.0,0.01156026]
[1766550660696,0.01145698,87283.0,87271.0,0.01145856]
[1766550660949,9.405e-05,87283.0,87276.0,0.3531579]
[1766550661163,9.405e-05,87283.0,87280.0,0.01145737]
[1766550661654,9.405e-05,87283.0,87280.0,0.0687437]
[1766550661782,9.405e-05,87283.0,87278.0,0.01145764]
[1766550662214,9.405e-05,87283.0,87278.0,0.03381526]
[1766550662648,9.405e-05,87283.0,87280.0,0.01145737]
[1766550662866,9.405e-05,87283.0,87280.0,0.06874417]
[1766550663043,0.33129673,87292.0,87284.0,0.01145685]
[1766550663247,0.01148,87294.0,87284.0,0.35326407]
[1766550663450,0.01155567,87293.0,87285.0,0.3417]
[1766550663796,0.0114558,87292.0,87285.0,0.3417]
[1766550664111,0.01145593,87291.0,87285.0,0.3417]
[1766550664386,0.0114558,87292.0,87285.0,0.3417]
[1766550664740,0.01145593,87291.0,87285.0,0.3417]
[1766550664957,0.000549,87285.0,87283.0,0.01148]
[1766550665185,0.40139661,87290.0,87282.0,0.01148]
[1766550665186,0.01145619,87289.0,87282.0,0.01148]
[1766550665393,0.33266,87289.0,87282.0,0.01148]
[1766550665786,0.34411619,87289.0,87282.0,0.01148]
[1766550666396,0.33266,87289.0,87282.0,0.01148]
[1766550666786,0.33266,87289.0,87282.0,0.02293711]
[1766550667454,0.33266,87289.0,87282.0,0.01148]
[1766550667767,0.34411619,87289.0,87282.0,0.01148]
[1766550667969,0.33266,87289.0,87282.0,0.01148]
[1766550668574,0.34411619,87289.0,87282.0,0.01148]
[1766550669335,0.01145645,87287.0,87282.0,0.01148]
[1766550669564,0.01145632,87288.0,87282.0,0.01148]
[1766550670141,0.34411619,87289.0,87282.0,0.01148]
[1766550670346,0.33266,87289.0,87283.0,0.01145698]
[1766550670554,0.33266,87289.0,87282.0,0.01148]
[1766550671661,0.33256272,87289.0,87282.0,0.01148]
[1766550671862,0.33256272,87289.0,87282.0,0.02293711]
[1766550672598,0.33256272,87289.0,87282.0,0.01145711]
[1766550672904,0.33256272,87289.0,87285.0,0.01145672]
[1766550673060,0.32882086,87289.0,87285.0,0.01145672]
[1766550673265,0.32846273,87289.0,87286.0,0.01145659]
[1766550673466,0.0001,87293.0,87290.0,0.01145606]
[1766550675294,0.0001,87293.0,87289.0,0.35315619]
[1766550675499,0.0001,87293.0,87290.0,0.01145606]
[1766550676374,0.01148,87299.0,87292.0,0.0114558]
[1766550677210,0.01148,87299.0,87296.0,0.06873124]
[1766550677593,4.8e-07,87305.0,87299.0,0.01145488]
[1766550677793,4.8e-07,87305.0,87300.0,0.01145475]
[1766550677992,4.8e-07,87305.0,87299.0,0.01145488]
[1766550678418,4.8e-07,87305.0,87298.0,0.01145501]
[1766550679081,4.8e-07,87305.0,87297.0,0.01145514]
[1766550679518,0.01145457,87305.0,87295.0,0.3531554]
[1766550679701,0.01145422,87304.0,87295.0,0.3531554]
[1766550679990,0.01145422,87304.0,87295.0,0.3417]
[1766550680392,0.01145422,87304.0,87295.0,0.3531554]
[1766550680641,0.01145422,87304.0,87295.0,0.3417]
[1766550681226,0.01145449,87302.0,87297.0,0.11898769]
[1766550681430,0.01145449,87302.0,87295.0,0.3417]
[1766550681630,0.01145475,87300.0,87295.0,0.32583409]
[1766550681871,0.01145462,87301.0,87295.0,0.32583409]
[1766550683038,0.01145449,87302.0,87295.0,0.32583409]
[1766550683583,0.01145462,87301.0,87295.0,0.32583409]
[1766550685440,0.01145449,87302.0,87295.0,0.32583409]
[1766550685612,0.01148,87306.0,87296.0,0.01145527]
[1766550685942,0.02293396,87306.0,87297.0,0.11898769]
[1766550686405,0.34411457,87305.0,87297.0,0.11898769]
[1766550686829,4.8e-07,87305.0,87297.0,0.11898769]
[1766550686998,0.01148,87306.0,87305.0,0.00054852]